Workbook

Sheet Festoversikt
B3: Festoversikt
B6: ARRANGEMENT | D6: GJESTESAMMENDRAG | H6: ="IKKE SVART: "&IkkeSvart -> IKKE SVART: 2
B7: Bestemors 75-årsdag | D7: SU-OVERSIKT | F7: KOSTNADER PER GJEST | H7: BUDSJETTBELØP
D8: Bekreftede gjester | E8: Totalt bekreftet | F8: Mat | G8: Annet | H8: Totalt
B9: DATO | D9: Voksne | E9: =SUMIF(Gjestetabell[KOMMER],"=Ja",Gjestetabell[VOKSNE]) -> 26 | F9: =Mattabell[[#Totals],[PRIS PER VOKSEN]] -> kr 12.69 | G9: =ViktigeKostnaderPerGjest -> kr 18.70 | H9: =(Deltakersammendrag[[#This Row],[Mat]]+Deltakersammendrag[[#This Row],[Annet]])*VoksneTotalt -> kr 816.03
B10: 2011-06-14 | D10: Barn | E10: =SUMIF(Gjestetabell[KOMMER],"=Ja",Gjestetabell[BARN]) -> 20 | F10: =Mattabell[[#Totals],[PRIS PER BARN]] -> kr 7.25 | G10: =ViktigeKostnaderPerGjest -> kr 18.70 | H10: =(Deltakersammendrag[[#This Row],[Mat]]+Deltakersammendrag[[#This Row],[Annet]])*BarnTotalt -> kr 518.97
D11: Totalt | E11: =SUBTOTAL(109,Deltakersammendrag[Totalt bekreftet]) -> 46 | F11: ="Gjsn. "&TEXT(SUBTOTAL(101,Deltakersammendrag[Mat]),"kr # ##0,00") -> Gjsn. kr 9,97 | G11: ="Gjsn. "&TEXT(SUBTOTAL(101,Deltakersammendrag[Annet]),"kr # ##0,00") -> Gjsn. kr 18,70 | H11: =SUBTOTAL(109,Deltakersammendrag[Totalt]) -> kr 1,335.00
B12: KLOKKESLETT
B13: 14:00 til 16:00
B15: STED
B16: Tante Livs hus | D16: BUDSJETTSAMMENDRAG
D17: ELEMENT | E17: ANTALL | F17: BUDSJETTBELØP | G17: TOTALKOSTNAD | H17: DIFFERANSE
D18: Mat og drikke | E18: =COUNTA(Mattabell[MAT- ELLER DRIKKEELEMENT]) -> 18 | F18: kr 500.00 | G18: =Mattabell[[#Totals],[TOTALKOSTNAD]] -> kr 475.00 | H18: =Budsjettoversikt[[#This Row],[BUDSJETTBELØP]]-Budsjettoversikt[[#This Row],[TOTALKOSTNAD]] -> kr 25.00
D19: =Tabell1Overskrift -> Utstyr og pynt | E19: =COUNTA(Tabell1Budsjett[Utstyr og pynt]) -> 7 | F19: kr 400.00 | G19: =Tabell1Budsjett[[#Totals],[Kostnad]] -> kr 400.00 | H19: =Budsjettoversikt[[#This Row],[BUDSJETTBELØP]]-Budsjettoversikt[[#This Row],[TOTALKOSTNAD]] -> kr 0.00
D20: =Tabell2Overskrift -> Dekorasjoner | E20: =COUNTA(Tabell2Budsjett[Dekorasjoner]) -> 4 | F20: kr 150.00 | G20: =Tabell2Budsjett[[#Totals],[Kostnad]] -> kr 175.00 | H20: =Budsjettoversikt[[#This Row],[BUDSJETTBELØP]]-Budsjettoversikt[[#This Row],[TOTALKOSTNAD]] -> (kr 25.00)
D21: =Tabell3Overskrift -> Annet | E21: =COUNTA(Tabell3Budsjett[Annet]) -> 4 | F21: kr 300.00 | G21: =Tabell3Budsjett[[#Totals],[Kostnad]] -> kr 285.00 | H21: =Budsjettoversikt[[#This Row],[BUDSJETTBELØP]]-Budsjettoversikt[[#This Row],[TOTALKOSTNAD]] -> kr 15.00
D22: Totalt | E22: =SUBTOTAL(109,Budsjettoversikt[ANTALL]) -> 33 | F22: =SUBTOTAL(109,Budsjettoversikt[BUDSJETTBELØP]) -> kr 1,350.00 | G22: =SUBTOTAL(109,Budsjettoversikt[TOTALKOSTNAD]) -> kr 1,335.00 | H22: =Budsjettoversikt[[#Totals],[BUDSJETTBELØP]]-Budsjettoversikt[[#Totals],[TOTALKOSTNAD]] -> kr 15.00

Sheet Gjesteliste
B3: Gjesteliste
B7: NAVN | C7: ADRESSE | D7: BY | E7: STAT | F7: POSTNUMMER | G7: TELEFON | H7: E-POST | I7: KOMMER | J7: BARN | K7: VOKSNE | L7: TOTALT
B8: Familie 1 | C8: Adresse 1 | D8: By 1 | E8: Stat 1 | F8: Postnummer 1 | G8: Telefon 1 | H8: E-post1 | I8: Nei | J8: 2 | K8: 2 | L8: =SUM(Gjestetabell[[#This Row],[BARN]:[VOKSNE]]) -> 4
B9: Familie 2 | C9: Adresse 2 | D9: By 2 | E9: Stat 2 | F9: Postnummer 2 | G9: Telefon 2 | H9: E-post2 | I9: Ja | J9: 1 | K9: 1 | L9: =SUM(Gjestetabell[[#This Row],[BARN]:[VOKSNE]]) -> 2
B10: Familie 3 | C10: Adresse 3 | D10: By 3 | E10: Stat 3 | F10: Postnummer 3 | G10: Telefon 3 | H10: E-post3 | I10: Ja | J10: 3 | K10: 3 | L10: =SUM(Gjestetabell[[#This Row],[BARN]:[VOKSNE]]) -> 6
B11: Familie 4 | C11: Adresse 4 | D11: By 4 | E11: Stat 4 | F11: Postnummer 4 | G11: Telefon 4 | H11: E-post4 | K11: 2 | L11: =SUM(Gjestetabell[[#This Row],[BARN]:[VOKSNE]]) -> 2
B12: Familie 5 | C12: Adresse 5 | D12: By 5 | E12: Stat 5 | F12: Postnummer 5 | G12: Telefon 5 | H12: E-post5 | I12: Ja | J12: 4 | K12: 3 | L12: =SUM(Gjestetabell[[#This Row],[BARN]:[VOKSNE]]) -> 7
B13: Familie 6 | C13: Adresse 6 | D13: By 6 | E13: Stat 6 | F13: Postnummer 6 | G13: Telefon 6 | H13: E-post6 | I13: Ja | J13: 2 | K13: 2 | L13: =SUM(Gjestetabell[[#This Row],[BARN]:[VOKSNE]]) -> 4
B14: Familie 7 | C14: Adresse 7 | D14: By 7 | E14: Stat 7 | F14: Postnummer 7 | G14: Telefon 7 | H14: E-post7 | I14: Ja | J14: 1 | K14: 4 | L14: =SUM(Gjestetabell[[#This Row],[BARN]:[VOKSNE]]) -> 5
B15: Familie 8 | C15: Adresse 8 | D15: By 8 | E15: Stat 8 | F15: Postnummer 8 | G15: Telefon 8 | H15: E-post8 | I15: Nei | J15: 5 | K15: 3 | L15: =SUM(Gjestetabell[[#This Row],[BARN]:[VOKSNE]]) -> 8
B16: Familie 9 | C16: Adresse 9 | D16: By 9 | E16: Stat 9 | F16: Postnummer 9 | G16: Telefon 9 | H16: E-post9 | I16: Ja | J16: 3 | K16: 2 | L16: =SUM(Gjestetabell[[#This Row],[BARN]:[VOKSNE]]) -> 5
B17: Familie 10 | C17: Adresse 10 | D17: By 10 | E17: Stat 10 | F17: Postnummer 10 | G17: Telefon 10 | H17: E-post10 | I17: Ja | K17: 4 | L17: =SUM(Gjestetabell[[#This Row],[BARN]:[VOKSNE]]) -> 4
B18: Familie 11 | C18: Adresse 11 | D18: By 11 | E18: Stat 11 | F18: Postnummer 11 | G18: Telefon 11 | H18: E-post11 | I18: Ja | J18: 3 | K18: 5 | L18: =SUM(Gjestetabell[[#This Row],[BARN]:[VOKSNE]]) -> 8
B19: Familie 12 | C19: Adresse 12 | D19: By 12 | E19: Stat 12 | F19: Postnummer 12 | G19: Telefon 12 | H19: E-post12 | I19: Nei | J19: 2 | K19: 3 | L19: =SUM(Gjestetabell[[#This Row],[BARN]:[VOKSNE]]) -> 5
B20: Familie 13 | C20: Adresse 13 | D20: By 13 | E20: Stat 13 | F20: Postnummer 13 | G20: Telefon 13 | H20: E-post13 | I20: Ja | J20: 3 | K20: 2 | L20: =SUM(Gjestetabell[[#This Row],[BARN]:[VOKSNE]]) -> 5
B21: Familie 14 | C21: Adresse 14 | D21: By 14 | E21: Stat 14 | F21: Postnummer 14 | G21: Telefon 14 | H21: E-post14 | I21: Nei | K21: 1 | L21: =SUM(Gjestetabell[[#This Row],[BARN]:[VOKSNE]]) -> 1
B22: Familie 15 | C22: Adresse 15 | D22: By 15 | E22: Stat 15 | F22: Postnummer 15 | G22: Telefon 15 | H22: E-post15 | K22: 2 | L22: =SUM(Gjestetabell[[#This Row],[BARN]:[VOKSNE]]) -> 2

Sheet Mat og drikke
B3: Mat og drikke
B5: Oppgi pris og beregnede porsjoner for å beregne totalt antall og pris per porsjon basert på totalt antall deltakere
B6: MAT- ELLER DRIKKEELEMENT | C6: TOTALKOSTNAD | D6: PORSJON PER BARN | E6: PORSJON PER VOKSEN | F6: TOTALT ANTALL PORSJONER | G6: PRIS PER PORSJON | H6: PRIS PER BARN | I6: PRIS PER VOKSEN | J6: NOTATER
B7: Soda | C7: kr 15.00 | D7: 0.5 | E7: 2 | F7: =(Mattabell[[#This Row],[PORSJON PER BARN]]*BarnTotalt)+(Mattabell[[#This Row],[PORSJON PER VOKSEN]]*VoksneTotalt) -> 62 | G7: =IFERROR(Mattabell[[#This Row],[TOTALKOSTNAD]]/Mattabell[[#This Row],[TOTALT ANTALL PORSJONER]],"") -> kr 0.24 | H7: =IFERROR(Mattabell[[#This Row],[PRIS PER PORSJON]]*Mattabell[[#This Row],[PORSJON PER BARN]],"") -> kr 0.12 | I7: =IFERROR(Mattabell[[#This Row],[PRIS PER PORSJON]]*Mattabell[[#This Row],[PORSJON PER VOKSEN]],"") -> kr 0.48 | J7: 2 litersflasker
B8: Juicekartonger | C8: kr 15.00 | D8: 2 | E8: 0 | F8: =(Mattabell[[#This Row],[PORSJON PER BARN]]*BarnTotalt)+(Mattabell[[#This Row],[PORSJON PER VOKSEN]]*VoksneTotalt) -> 40 | G8: =IFERROR(Mattabell[[#This Row],[TOTALKOSTNAD]]/Mattabell[[#This Row],[TOTALT ANTALL PORSJONER]],"") -> kr 0.38 | H8: =IFERROR(Mattabell[[#This Row],[PRIS PER PORSJON]]*Mattabell[[#This Row],[PORSJON PER BARN]],"") -> kr 0.75 | I8: =IFERROR(Mattabell[[#This Row],[PRIS PER PORSJON]]*Mattabell[[#This Row],[PORSJON PER VOKSEN]],"") -> kr 0.00 | J8: Eple og hvite druer
B9: Vin | C9: kr 50.00 | D9: 0 | E9: 2 | F9: =(Mattabell[[#This Row],[PORSJON PER BARN]]*BarnTotalt)+(Mattabell[[#This Row],[PORSJON PER VOKSEN]]*VoksneTotalt) -> 52 | G9: =IFERROR(Mattabell[[#This Row],[TOTALKOSTNAD]]/Mattabell[[#This Row],[TOTALT ANTALL PORSJONER]],"") -> kr 0.96 | H9: =IFERROR(Mattabell[[#This Row],[PRIS PER PORSJON]]*Mattabell[[#This Row],[PORSJON PER BARN]],"") -> kr 0.00 | I9: =IFERROR(Mattabell[[#This Row],[PRIS PER PORSJON]]*Mattabell[[#This Row],[PORSJON PER VOKSEN]],"") -> kr 1.92
B10: Kake | C10: kr 75.00 | D10: 1 | E10: 1 | F10: =(Mattabell[[#This Row],[PORSJON PER BARN]]*BarnTotalt)+(Mattabell[[#This Row],[PORSJON PER VOKSEN]]*VoksneTotalt) -> 46 | G10: =IFERROR(Mattabell[[#This Row],[TOTALKOSTNAD]]/Mattabell[[#This Row],[TOTALT ANTALL PORSJONER]],"") -> kr 1.63 | H10: =IFERROR(Mattabell[[#This Row],[PRIS PER PORSJON]]*Mattabell[[#This Row],[PORSJON PER BARN]],"") -> kr 1.63 | I10: =IFERROR(Mattabell[[#This Row],[PRIS PER PORSJON]]*Mattabell[[#This Row],[PORSJON PER VOKSEN]],"") -> kr 1.63 | J10: Bestill fra lokalt bakeri
B11: Iskrem | C11: kr 20.00 | D11: 1 | E11: 1.5 | F11: =(Mattabell[[#This Row],[PORSJON PER BARN]]*BarnTotalt)+(Mattabell[[#This Row],[PORSJON PER VOKSEN]]*VoksneTotalt) -> 59 | G11: =IFERROR(Mattabell[[#This Row],[TOTALKOSTNAD]]/Mattabell[[#This Row],[TOTALT ANTALL PORSJONER]],"") -> kr 0.34 | H11: =IFERROR(Mattabell[[#This Row],[PRIS PER PORSJON]]*Mattabell[[#This Row],[PORSJON PER BARN]],"") -> kr 0.34 | I11: =IFERROR(Mattabell[[#This Row],[PRIS PER PORSJON]]*Mattabell[[#This Row],[PORSJON PER VOKSEN]],"") -> kr 0.51
B12: Puddingposjoner | C12: kr 15.00 | D12: 1 | E12: 0 | F12: =(Mattabell[[#This Row],[PORSJON PER BARN]]*BarnTotalt)+(Mattabell[[#This Row],[PORSJON PER VOKSEN]]*VoksneTotalt) -> 20 | G12: =IFERROR(Mattabell[[#This Row],[TOTALKOSTNAD]]/Mattabell[[#This Row],[TOTALT ANTALL PORSJONER]],"") -> kr 0.75 | H12: =IFERROR(Mattabell[[#This Row],[PRIS PER PORSJON]]*Mattabell[[#This Row],[PORSJON PER BARN]],"") -> kr 0.75 | I12: =IFERROR(Mattabell[[#This Row],[PRIS PER PORSJON]]*Mattabell[[#This Row],[PORSJON PER VOKSEN]],"") -> kr 0.00 | J12: Kjøp ferdige kopper: vanilje og sjokolade
B13: Stuet sopp | C13: kr 32.00 | D13: 1 | E13: 2 | F13: =(Mattabell[[#This Row],[PORSJON PER BARN]]*BarnTotalt)+(Mattabell[[#This Row],[PORSJON PER VOKSEN]]*VoksneTotalt) -> 72 | G13: =IFERROR(Mattabell[[#This Row],[TOTALKOSTNAD]]/Mattabell[[#This Row],[TOTALT ANTALL PORSJONER]],"") -> kr 0.44 | H13: =IFERROR(Mattabell[[#This Row],[PRIS PER PORSJON]]*Mattabell[[#This Row],[PORSJON PER BARN]],"") -> kr 0.44 | I13: =IFERROR(Mattabell[[#This Row],[PRIS PER PORSJON]]*Mattabell[[#This Row],[PORSJON PER VOKSEN]],"") -> kr 0.89 | J13: Sjampinjonger stuet med kremost og pølser
B14: Bruschetta | C14: kr 22.00 | D14: 0 | E14: 3 | F14: =(Mattabell[[#This Row],[PORSJON PER BARN]]*BarnTotalt)+(Mattabell[[#This Row],[PORSJON PER VOKSEN]]*VoksneTotalt) -> 78 | G14: =IFERROR(Mattabell[[#This Row],[TOTALKOSTNAD]]/Mattabell[[#This Row],[TOTALT ANTALL PORSJONER]],"") -> kr 0.28 | H14: =IFERROR(Mattabell[[#This Row],[PRIS PER PORSJON]]*Mattabell[[#This Row],[PORSJON PER BARN]],"") -> kr 0.00 | I14: =IFERROR(Mattabell[[#This Row],[PRIS PER PORSJON]]*Mattabell[[#This Row],[PORSJON PER VOKSEN]],"") -> kr 0.85 | J14: Tomat og basilikum
B15: Røkt laks | C15: kr 50.00 | D15: 1 | E15: 2 | F15: =(Mattabell[[#This Row],[PORSJON PER BARN]]*BarnTotalt)+(Mattabell[[#This Row],[PORSJON PER VOKSEN]]*VoksneTotalt) -> 72 | G15: =IFERROR(Mattabell[[#This Row],[TOTALKOSTNAD]]/Mattabell[[#This Row],[TOTALT ANTALL PORSJONER]],"") -> kr 0.69 | H15: =IFERROR(Mattabell[[#This Row],[PRIS PER PORSJON]]*Mattabell[[#This Row],[PORSJON PER BARN]],"") -> kr 0.69 | I15: =IFERROR(Mattabell[[#This Row],[PRIS PER PORSJON]]*Mattabell[[#This Row],[PORSJON PER VOKSEN]],"") -> kr 1.39
B16: Mini-bagels | C16: kr 20.00 | D16: 1 | E16: 2 | F16: =(Mattabell[[#This Row],[PORSJON PER BARN]]*BarnTotalt)+(Mattabell[[#This Row],[PORSJON PER VOKSEN]]*VoksneTotalt) -> 72 | G16: =IFERROR(Mattabell[[#This Row],[TOTALKOSTNAD]]/Mattabell[[#This Row],[TOTALT ANTALL PORSJONER]],"") -> kr 0.28 | H16: =IFERROR(Mattabell[[#This Row],[PRIS PER PORSJON]]*Mattabell[[#This Row],[PORSJON PER BARN]],"") -> kr 0.28 | I16: =IFERROR(Mattabell[[#This Row],[PRIS PER PORSJON]]*Mattabell[[#This Row],[PORSJON PER VOKSEN]],"") -> kr 0.56 | J16: 4 poser - assortert
B17: Kremost | C17: kr 10.00 | D17: 1 | E17: 2 | F17: =(Mattabell[[#This Row],[PORSJON PER BARN]]*BarnTotalt)+(Mattabell[[#This Row],[PORSJON PER VOKSEN]]*VoksneTotalt) -> 72 | G17: =IFERROR(Mattabell[[#This Row],[TOTALKOSTNAD]]/Mattabell[[#This Row],[TOTALT ANTALL PORSJONER]],"") -> kr 0.14 | H17: =IFERROR(Mattabell[[#This Row],[PRIS PER PORSJON]]*Mattabell[[#This Row],[PORSJON PER BARN]],"") -> kr 0.14 | I17: =IFERROR(Mattabell[[#This Row],[PRIS PER PORSJON]]*Mattabell[[#This Row],[PORSJON PER VOKSEN]],"") -> kr 0.28 | J17: 2 store tuber
B18: Kapers | C18: kr 12.00 | D18: 1 | E18: 2 | F18: =(Mattabell[[#This Row],[PORSJON PER BARN]]*BarnTotalt)+(Mattabell[[#This Row],[PORSJON PER VOKSEN]]*VoksneTotalt) -> 72 | G18: =IFERROR(Mattabell[[#This Row],[TOTALKOSTNAD]]/Mattabell[[#This Row],[TOTALT ANTALL PORSJONER]],"") -> kr 0.17 | H18: =IFERROR(Mattabell[[#This Row],[PRIS PER PORSJON]]*Mattabell[[#This Row],[PORSJON PER BARN]],"") -> kr 0.17 | I18: =IFERROR(Mattabell[[#This Row],[PRIS PER PORSJON]]*Mattabell[[#This Row],[PORSJON PER VOKSEN]],"") -> kr 0.33 | J18: 3 krukker
B19: Kyllingvinger | C19: kr 45.00 | D19: 2 | E19: 4 | F19: =(Mattabell[[#This Row],[PORSJON PER BARN]]*BarnTotalt)+(Mattabell[[#This Row],[PORSJON PER VOKSEN]]*VoksneTotalt) -> 144 | G19: =IFERROR(Mattabell[[#This Row],[TOTALKOSTNAD]]/Mattabell[[#This Row],[TOTALT ANTALL PORSJONER]],"") -> kr 0.31 | H19: =IFERROR(Mattabell[[#This Row],[PRIS PER PORSJON]]*Mattabell[[#This Row],[PORSJON PER BARN]],"") -> kr 0.63 | I19: =IFERROR(Mattabell[[#This Row],[PRIS PER PORSJON]]*Mattabell[[#This Row],[PORSJON PER VOKSEN]],"") -> kr 1.25 | J19: Kjøp fra lokalbutikken
B20: Hummus | C20: kr 10.00 | D20: 4 | E20: 6 | F20: =(Mattabell[[#This Row],[PORSJON PER BARN]]*BarnTotalt)+(Mattabell[[#This Row],[PORSJON PER VOKSEN]]*VoksneTotalt) -> 236 | G20: =IFERROR(Mattabell[[#This Row],[TOTALKOSTNAD]]/Mattabell[[#This Row],[TOTALT ANTALL PORSJONER]],"") -> kr 0.04 | H20: =IFERROR(Mattabell[[#This Row],[PRIS PER PORSJON]]*Mattabell[[#This Row],[PORSJON PER BARN]],"") -> kr 0.17 | I20: =IFERROR(Mattabell[[#This Row],[PRIS PER PORSJON]]*Mattabell[[#This Row],[PORSJON PER VOKSEN]],"") -> kr 0.25 | J20: Lag kvelden før
B21: Parmesanchips | C21: kr 14.00 | D21: 4 | E21: 6 | F21: =(Mattabell[[#This Row],[PORSJON PER BARN]]*BarnTotalt)+(Mattabell[[#This Row],[PORSJON PER VOKSEN]]*VoksneTotalt) -> 236 | G21: =IFERROR(Mattabell[[#This Row],[TOTALKOSTNAD]]/Mattabell[[#This Row],[TOTALT ANTALL PORSJONER]],"") -> kr 0.06 | H21: =IFERROR(Mattabell[[#This Row],[PRIS PER PORSJON]]*Mattabell[[#This Row],[PORSJON PER BARN]],"") -> kr 0.24 | I21: =IFERROR(Mattabell[[#This Row],[PRIS PER PORSJON]]*Mattabell[[#This Row],[PORSJON PER VOKSEN]],"") -> kr 0.36 | J21: Lag kvelden før
B22: Assorterte grønnsaker | C22: kr 30.00 | D22: 4 | E22: 10 | F22: =(Mattabell[[#This Row],[PORSJON PER BARN]]*BarnTotalt)+(Mattabell[[#This Row],[PORSJON PER VOKSEN]]*VoksneTotalt) -> 340 | G22: =IFERROR(Mattabell[[#This Row],[TOTALKOSTNAD]]/Mattabell[[#This Row],[TOTALT ANTALL PORSJONER]],"") -> kr 0.09 | H22: =IFERROR(Mattabell[[#This Row],[PRIS PER PORSJON]]*Mattabell[[#This Row],[PORSJON PER BARN]],"") -> kr 0.35 | I22: =IFERROR(Mattabell[[#This Row],[PRIS PER PORSJON]]*Mattabell[[#This Row],[PORSJON PER VOKSEN]],"") -> kr 0.88 | J22: Gulrotstenger, selleri, brokkoli, blomkål, rød og grønn paprika
B23: Ostekuler | C23: kr 15.00 | D23: 5 | E23: 10 | F23: =(Mattabell[[#This Row],[PORSJON PER BARN]]*BarnTotalt)+(Mattabell[[#This Row],[PORSJON PER VOKSEN]]*VoksneTotalt) -> 360 | G23: =IFERROR(Mattabell[[#This Row],[TOTALKOSTNAD]]/Mattabell[[#This Row],[TOTALT ANTALL PORSJONER]],"") -> kr 0.04 | H23: =IFERROR(Mattabell[[#This Row],[PRIS PER PORSJON]]*Mattabell[[#This Row],[PORSJON PER BARN]],"") -> kr 0.21 | I23: =IFERROR(Mattabell[[#This Row],[PRIS PER PORSJON]]*Mattabell[[#This Row],[PORSJON PER VOKSEN]],"") -> kr 0.42 | J23: Assortert: kremost, skarp ost m/nøtter
B24: Kjeks | C24: kr 25.00 | D24: 5 | E24: 10 | F24: =(Mattabell[[#This Row],[PORSJON PER BARN]]*BarnTotalt)+(Mattabell[[#This Row],[PORSJON PER VOKSEN]]*VoksneTotalt) -> 360 | G24: =IFERROR(Mattabell[[#This Row],[TOTALKOSTNAD]]/Mattabell[[#This Row],[TOTALT ANTALL PORSJONER]],"") -> kr 0.07 | H24: =IFERROR(Mattabell[[#This Row],[PRIS PER PORSJON]]*Mattabell[[#This Row],[PORSJON PER BARN]],"") -> kr 0.35 | I24: =IFERROR(Mattabell[[#This Row],[PRIS PER PORSJON]]*Mattabell[[#This Row],[PORSJON PER VOKSEN]],"") -> kr 0.69 | J24: Assortert
B25: Totalt | C25: =SUBTOTAL(109,Mattabell[TOTALKOSTNAD]) -> kr 475.00 | D25: =SUBTOTAL(109,Mattabell[PORSJON PER BARN]) -> 34.5 | E25: =SUBTOTAL(109,Mattabell[PORSJON PER VOKSEN]) -> 65.5 | F25: =SUBTOTAL(109,Mattabell[TOTALT ANTALL PORSJONER]) -> 2393 | G25: =SUBTOTAL(109,Mattabell[PRIS PER PORSJON]) -> kr 6.92 | H25: =SUBTOTAL(109,Mattabell[PRIS PER BARN]) -> kr 7.25 | I25: =SUBTOTAL(109,Mattabell[PRIS PER VOKSEN]) -> kr 12.69

Sheet Andre viktige elementer
B3: Andre viktige ting
B6: Utstyr og pynt | C6: Kostnad | D6: Kjøpt | E6: Notater
B7: Romleie | C7: kr 250.00 | D7: Ja
B8: Duker | C8: kr 30.00 | D8: Ja | E8: Leie
B9: Bord og stoler | C9: kr 0.00 | E9: Inkludert i romleien
B10: Drikkeservietter | C10: kr 25.00
B11: Bordservietter | C11: kr 20.00 | E11: Leie
B12: Servitører | C12: kr 50.00 | E12: Leie
B13: Glasstøy | C13: kr 25.00 | E13: Leie
B14: Totalt | C14: =SUBTOTAL(109,Tabell1Budsjett[Kostnad]) -> kr 400.00
B18: Dekorasjoner | C18: Kostnad | D18: Kjøpt | E18: Notater
B19: Ballonger | C19: kr 25.00
B20: Heliumtank | C20: kr 50.00 | E20: Leie
B21: Bordpynt | C21: kr 100.00 | D21: Ja | E21: 10 totalt
B22: Glassvaser | C22: kr 0.00 | E22: Låne fra Liv
B23: Totalt | C23: =SUBTOTAL(109,Tabell2Budsjett[Kostnad]) -> kr 175.00
B27: Annet | C27: Kostnad | D27: Kjøpt | E27: Notater
B28: Invitasjoner | C28: kr 50.00 | D28: Ja
B29: Porto | C29: kr 60.00 | D29: Ja
B30: Fotograf | C30: kr 125.00 | E30: 2 timer (14:00 - 16:00)
B31: Festtjenester | C31: kr 50.00
B32: Totalt | C32: =SUBTOTAL(109,Tabell3Budsjett[Kostnad]) -> kr 285.00

Sheet Bordplassering
A1: Bordplassering
AH35: *1 meter = omtrent 1 kvadratmeter
A36: Notater | T36: =" Totalt antall gjester som har bekreftet "&BekreftedeGjester -> Totalt antall gjester som har bekreftet 46
T37: Du kan bruke hvilket som helst av følgende bordoppsett:
U38: =ROUNDUP(BekreftedeGjester/6,0)&" runde bord, 140 cm (6 sitteplasser)" -> 8 runde bord, 140 cm (6 sitteplasser)
U39: =ROUNDUP(BekreftedeGjester/8,0) &" runde bord, 150 cm (8 sitteplasser)" -> 6 runde bord, 150 cm (8 sitteplasser)
U40: =ROUNDUP(BekreftedeGjester/10,0)&" runde bord, 180 cm (10 sitteplasser)" -> 5 runde bord, 180 cm (10 sitteplasser)
U41: =ROUNDUP(BekreftedeGjester/6,0)& " firkantede bord, 75 cm x 180 cm (6 sitteplasser)" -> 8 firkantede bord, 75 cm x 180 cm (6 sitteplasser)
U42: =ROUNDUP(BekreftedeGjester/8,0)&" firkantede bord, 75 cm x 240 cm (8 sitteplasser)" -> 6 firkantede bord, 75 cm x 240 cm (8 sitteplasser)
T43: (Ønsket plass mellom bord: 2 meter)
